fUST/lending_fUST_20240726
["ID","MTS","AMOUNT","RATE_DAILY","PERIOD"]
[333188369,1721928654191,-3240.79,0.00013972,2]
[333188370,1721928654202,-794.17,0.00013972,2]
[333188371,1721928654214,-566.77349896,0.00013972,2]
[333188372,1721928654225,-500.0,0.00013972,2]
[333188373,1721928654235,-1663.33,0.00013972,2]
[333188374,1721928654247,-500.0,0.00013972,2]
[333188375,1721928654259,-500.0,0.00013972,2]
[333188376,1721928654270,-500.0,0.00013972,2]
[333188377,1721928654279,-500.0,0.00013972,2]
[333188378,1721928654292,-500.0,0.00013972,2]
[333188379,1721928654304,-500.0,0.00013972,2]
[333188380,1721928654316,-1089.79,0.00013972,2]
[333188381,1721928654326,-500.0,0.00013972,2]
[333188382,1721928654338,-500.0,0.00013972,2]
[333188383,1721928654349,-500.0,0.00013972,2]
[333188384,1721928654359,-500.0,0.00013972,2]
[333188385,1721928654370,-1812.0,0.00013972,2]
[333188386,1721928654381,-916.05,0.00013972,2]
[333188387,1721928654392,-500.0,0.00013972,2]
[333188388,1721928654403,-500.0,0.00013972,2]
[333188389,1721928654412,-500.0,0.00013972,2]
[333188390,1721928654422,-151.0,0.00013972,2]
[333188391,1721928654431,-151.0,0.00013972,2]
[333188392,1721928654440,-500.0,0.00013972,2]
[333188393,1721928654449,-500.0,0.00013972,2]
[333188394,1721928654460,-500.0,0.00013972,2]
[333188395,1721928654469,-852.87,0.00013972,2]
[333188396,1721928654480,-151.0,0.00013972,2]
[333188397,1721928654489,-242.066712,0.00013972,2]
[333188398,1721928654499,-500.0,0.00013972,2]
[333188399,1721928654508,-11128.86,0.00013972,2]
[333188400,1721928654518,-500.0,0.00013972,2]
[333188401,1721928654527,-7430.87,0.00013972,2]
[333188402,1721928654539,-1809.44,0.00013972,2]
[333188403,1721928654550,-500.0,0.00013972,2]
[333188404,1721928654561,-1078.42,0.00013972,2]
[333188405,1721928654572,-500.0,0.00013972,2]
[333188406,1721928654583,-1463.94,0.00013972,2]
[333188407,1721928654594,-568.96581752,0.00013972,2]
[333188408,1721928654606,-1975.13,0.00013972,2]
[333188409,1721928654616,-500.0,0.00013972,2]
[333188410,1721928654626,-4645.21,0.00013972,2]
[333188411,1721928654636,-500.0,0.00013972,2]
[333188412,1721928654647,-500.0,0.00013972,2]
[333188413,1721928654659,-500.0,0.00013972,2]
[333188414,1721928654670,-151.0,0.00013972,2]
[333188415,1721928654680,-500.0,0.00013972,2]
[333188416,1721928654691,-500.0,0.00013972,2]
[333188417,1721928654702,-238.741733,0.00013972,2]
[333188418,1721928654713,-500.0,0.00013972,2]
[333188419,1721928654724,-9320.52,0.00013972,2]
[333188420,1721928654736,-500.0,0.00013972,2]
[333188421,1721928654746,-500.0,0.00013972,2]
[333188422,1721928654758,-500.0,0.00013972,2]
[333188423,1721928654769,-2059.35,0.00013972,2]
[333188424,1721928654779,-500.0,0.00013972,2]
[333188425,1721928654790,-500.0,0.00013972,2]
[333188426,1721928654801,-500.0,0.00013972,2]
[333188427,1721928654811,-500.0,0.00013972,2]
[333188428,1721928654822,-665.36,0.00013972,2]
[333188429,1721928654833,-500.0,0.00013972,2]
[333188430,1721928654844,-933.06,0.00013972,2]
[333188431,1721928654856,-500.0,0.00013972,2]
[333188432,1721928654866,-315.32000538,0.00013972,2]
[333188433,1721928654876,-968.97,0.00013972,2]
[333188434,1721928654887,-500.0,0.00013972,2]
[333188435,1721928654897,-525.99212258,0.00013972,2]
[333188436,1721928654907,-500.0,0.00013972,2]
[333188437,1721928654918,-500.0,0.00013972,2]
[333188438,1721928654928,-500.0,0.00013972,2]
[333188439,1721928654938,-500.0,0.00013972,2]
[333188440,1721928654948,-5404.43,0.00013972,2]
[333188441,1721928654958,-500.0,0.00013972,2]
[333188442,1721928654969,-638.01,0.00013972,2]
[333188443,1721928654981,-542.34,0.00013972,2]
[333188444,1721928654991,-1488.62,0.00013972,2]
[333188445,1721928655000,-151.0,0.00013972,2]
[333188446,1721928655010,-151.0,0.00013972,2]
[333188447,1721928655022,-151.0,0.00013972,2]
[333188448,1721928655034,-151.0,0.00013972,2]
[333188449,1721928655044,-500.0,0.00013972,2]
[333188450,1721928655055,-1910.87,0.00013972,2]
[333188451,1721928655066,-549.7,0.00013972,2]
[333188452,1721928655076,-500.0,0.00013972,2]
[333188453,1721928655086,-1139.11,0.00013972,2]
[333188454,1721928655097,-1636.47,0.00013972,2]
[333188455,1721928655108,-500.0,0.00013972,2]
[333188456,1721928655118,-3452.02,0.00013972,2]
[333188457,1721928655127,-1027.54,0.00013972,2]
[333188458,1721928655137,-503.57721917,0.00013972,2]
[333188459,1721928655147,-500.0,0.00013972,2]
[333188460,1721928655158,-520.4220506,0.00013972,2]
[333188461,1721928655170,-302.94005181,0.00013972,2]
[333188462,1721928655179,-500.0,0.00013972,2]
[333188463,1721928655189,-500.0,0.00013972,2]
[333188464,1721928655199,-500.0,0.00013972,2]
[333188465,1721928655209,-500.0,0.00013972,2]
[333188466,1721928655219,-1777.76,0.00013972,2]
[333188467,1721928655232,-500.0,0.00013972,2]
[333188468,1721928655242,-500.0,0.00013972,2]
[333188469,1721928655252,-500.0,0.00013972,2]
[333188470,1721928655262,-500.0,0.00013972,2]
[333188471,1721928655272,-761.13,0.00013972,2]
[333188472,1721928655281,-1342.29,0.00013972,2]
[333188473,1721928655291,-500.0,0.00013972,2]
[333188474,1721928655300,-500.0,0.00013972,2]
[333188475,1721928655310,-1426.57,0.00013972,2]
[333188476,1721928655319,-500.0,0.00013972,2]
[333188477,1721928655329,-929.54,0.00013972,2]
[333188478,1721928655338,-500.0,0.00013972,2]
[333188479,1721928655348,-1710.02,0.00013972,2]
[333188480,1721928655358,-500.0,0.00013972,2]
[333188481,1721928655368,-500.0,0.00013972,2]
[333188482,1721928655378,-504.37203134,0.00013972,2]
[333188483,1721928655387,-500.0,0.00013972,2]
[333188484,1721928655397,-500.0,0.00013972,2]
[333188485,1721928655408,-1528.51,0.00013972,2]
[333188486,1721928655418,-500.0,0.00013972,2]
[333188487,1721928655427,-615.61278734,0.00013972,2]
[333188488,1721928655437,-382.7536594,0.00013972,2]
[333188489,1721928655446,-500.0,0.00013972,2]
[333188490,1721928655455,-500.0,0.00013972,2]
[333188491,1721928655465,-500.0,0.00013972,2]
[333188492,1721928655475,-500.0,0.00013972,2]
[333188493,1721928655484,-174.587535,0.00013972,2]
[333188494,1721928655494,-174.587535,0.00013972,2]
[333188495,1721928655504,-500.0,0.00013972,2]
[333188496,1721928655513,-500.0,0.00013972,2]
[333188497,1721928655523,-500.0,0.00013972,2]
[333188498,1721928655532,-1328.54,0.00013972,2]
[333188499,1721928655542,-500.0,0.00013972,2]
[333188500,1721928655551,-174.587535,0.00013972,2]
[333188501,1721928655561,-174.587535,0.00013972,2]
[333188502,1721928655571,-2876.87,0.00013972,2]
[333188503,1721928655580,-1142.72,0.00013972,2]
[333188504,1721928655590,-500.0,0.00013972,2]
[333188505,1721928655599,-500.0,0.00013972,2]
[333188506,1721928655610,-500.0,0.00013972,2]
[333188507,1721928655619,-766.66,0.00013972,2]
[333188508,1721928655628,-155.73,0.00013972,2]
[333188509,1721928655637,-1450.16,0.00013972,2]
[333188510,1721928655647,-219.83,0.00013972,2]
[333188511,1721928655656,-500.0,0.00013972,2]
[333188512,1721928655665,-153.0,0.00014,2]
[333188513,1721928655675,-5306.88604622,0.00014006,2]
[333188514,1721928655684,-763.98764324,0.00014039,2]
[333188515,1721928655694,-151.0,0.00014066,2]
[333188516,1721928655703,-151.0,0.00014066,2]
[333188517,1721928655713,-151.0,0.00014066,2]
[333188518,1721928655723,-151.0,0.00014066,2]
[333188519,1721928655734,-157.212796,0.00014066,2]
[333188520,1721928655743,-662.56258,0.00014066,2]
[333188521,1721928655752,-662.56258,0.00014066,2]
[333188522,1721928655762,-181.861412,0.00014066,2]
[333188523,1721928655772,-151.0,0.00014066,2]
[333188524,1721928655781,-150.0,0.0001411,2]
[333188525,1721928655792,-151.0,0.00014134,2]
[333188526,1721928655803,-151.0,0.00014134,2]
[333188527,1721928655813,-1813.648089,0.00014134,2]
[333188528,1721928655824,-1813.648089,0.00014134,2]
[333188529,1721928655835,-3200.0,0.00014134,2]
[333188530,1721928655847,-259.02,0.00014134,2]
[333188531,1721928655857,-259.02,0.00014134,2]
[333188532,1721928655868,-151.0,0.00014236,2]
[333188533,1721928655879,-151.0,0.00014236,2]
[333188534,1721928655890,-1627.268483,0.00014246,2]
[333188535,1721928655902,-1627.268483,0.00014246,2]
[333188536,1721928655913,-1627.268483,0.00014246,2]
[333188537,1721928655923,-1627.268483,0.00014246,2]
[333188538,1721928655935,-151.0,0.00014246,2]
[333188539,1721928655945,-500.0,0.00014246,2]
[333188540,1721928655955,-500.0,0.00014246,2]
[333188541,1721928655965,-500.0,0.00014246,2]
[333188542,1721928655977,-1374.14,0.00014246,2]
[333188543,1721928655986,-500.0,0.00014246,2]
[333188544,1721928655995,-500.0,0.00014246,2]
[333188545,1721928656005,-500.0,0.00014246,2]
[333188546,1721928656014,-500.0,0.00014246,2]
[333188547,1721928656026,-500.0,0.00014246,2]
[333188548,1721928656038,-500.0,0.00014246,2]
[333188549,1721928656049,-500.0,0.00014246,2]
[333188550,1721928656059,-500.0,0.00014246,2]
[333188551,1721928656070,-819.7,0.00014246,2]
[333188552,1721928656081,-685.25,0.00014246,2]
[333188553,1721928656092,-500.0,0.00014246,2]
[333188554,1721928656103,-500.0,0.00014246,2]
[333188555,1721928656113,-500.0,0.00014246,2]
[333188556,1721928656123,-500.0,0.00014246,2]
[333188557,1721928656136,-504.89101976,0.00014246,2]
[333188558,1721928656146,-500.0,0.00014246,2]
[333188559,1721928656157,-500.0,0.00014246,2]
[333188560,1721928656169,-500.0,0.00014246,2]
[333188561,1721928656178,-500.0,0.00014246,2]
[333188562,1721928656309,-500.0,0.00014246,2]
[333188563,1721928656325,-500.0,0.00014246,2]
[333188564,1721928656337,-500.0,0.00014246,2]
[333188565,1721928656349,-685.55,0.00014246,2]
[333188566,1721928656359,-506.75001653,0.00014246,2]
[333188567,1721928656370,-1315.11,0.00014246,2]
[333188568,1721928656381,-500.0,0.00014246,2]
[333188569,1721928656391,-500.0,0.00014246,2]
[333188570,1721928656402,-500.0,0.00014246,2]
[333188571,1721928656413,-155.80642,0.00014246,2]
[333188572,1721928656423,-507.36384255,0.00014246,2]
[333188573,1721928656433,-500.0,0.00014246,2]
[333188574,1721928656444,-500.0,0.00014246,2]
[333188575,1721928656454,-500.0,0.00014246,2]
[333188576,1721928656463,-642.21,0.00014246,2]
[333188577,1721928656474,-500.0,0.00014246,2]
[333188578,1721928656488,-500.0,0.00014246,2]
[333188579,1721928656497,-500.0,0.00014246,2]
[333188580,1721928656509,-500.0,0.00014246,2]
[333188581,1721928656519,-500.0,0.00014246,2]
[333188582,1721928656528,-500.0,0.00014246,2]
[333188583,1721928656537,-996.72,0.00014246,2]
[333188584,1721928656546,-560.79,0.00014246,2]
[333188585,1721928656556,-571.10467,0.00014246,2]
[333188586,1721928656565,-571.10467,0.00014246,2]
[333188587,1721928656574,-500.0,0.00014246,2]
[333188588,1721928656583,-1019.38,0.00014246,2]
[333188589,1721928656592,-571.10467,0.00014246,2]
[333188590,1721928656603,-571.10467,0.00014246,2]
[333188591,1721928656615,-608.7,0.00014246,2]
[333188592,1721928656627,-500.0,0.00014246,2]
[333188593,1721928656639,-924.0,0.00014246,2]
[333188594,1721928656651,-500.0,0.00014246,2]
[333188595,1721928656661,-500.0,0.00014246,2]
[333188596,1721928656672,-823.18,0.00014246,2]
[333188597,1721928656684,-151.0,0.00014246,2]
[333188598,1721928656695,-151.0,0.00014246,2]
[333188599,1721928656706,-500.0,0.00014246,2]
[333188600,1721928656717,-151.0,0.00014246,2]
[333188601,1721928656730,-500.0,0.00014246,2]
[333188602,1721928656741,-512.55,0.00014246,2]
[333188603,1721928656751,-500.0,0.00014246,2]
[333188604,1721928656761,-500.0,0.00014246,2]
[333188605,1721928656773,-500.0,0.00014246,2]
[333188606,1721928656783,-500.0,0.00014246,2]
[333188607,1721928656793,-500.0,0.00014246,2]
[333188608,1721928656804,-500.0,0.00014246,2]
[333188609,1721928656814,-500.0,0.00014246,2]
[333188610,1721928656826,-208.745872,0.00014246,2]
[333188611,1721928656838,-208.745872,0.00014246,2]
[333188612,1721928656849,-1567.59,0.00014246,2]
[333188613,1721928656858,-2330.1,0.00014246,2]
[333188614,1721928656868,-521.16,0.00014246,2]
[333188615,1721928656877,-414.528918,0.00014246,2]
[333188616,1721928656887,-500.0,0.00014246,2]
[333188617,1721928656897,-414.528918,0.00014246,2]
[333188618,1721928656907,-500.0,0.00014246,2]
[333188619,1721928656916,-500.0,0.00014246,2]
[333188620,1721928656925,-661.51,0.00014246,2]
[333188621,1721928656935,-500.0,0.00014246,2]
[333188622,1721928656945,-151.0,0.00014246,2]
[333188623,1721928656955,-500.0,0.00014246,2]
[333188624,1721928656964,-500.0,0.00014246,2]
[333188625,1721928656974,-500.0,0.00014246,2]
[333188626,1721928656983,-784.31,0.00014246,2]
[333188627,1721928656993,-500.0,0.00014246,2]
[333188628,1721928657002,-500.0,0.00014246,2]
[333188629,1721928657012,-500.0,0.00014246,2]
[333188630,1721928657024,-1472.23,0.00014246,2]
[333188631,1721928657036,-500.0,0.00014246,2]
[333188632,1721928657046,-500.0,0.00014246,2]
[333188633,1721928657057,-500.0,0.00014246,2]
[333188634,1721928657068,-1043.27,0.00014246,2]
[333188635,1721928657079,-731.69,0.00014246,2]
[333188636,1721928657091,-1101.68,0.00014246,2]
[333188637,1721928657102,-500.0,0.00014246,2]
[333188638,1721928657111,-500.0,0.00014246,2]
[333188639,1721928657122,-768.27,0.00014246,2]
[333188640,1721928657132,-151.0,0.00014246,2]
[333188641,1721928657144,-151.0,0.00014246,2]
[333188642,1721928657156,-151.0,0.00014246,2]
[333188643,1721928657171,-504.19773066,0.00014246,2]
[333188644,1721928657181,-500.0,0.00014246,2]
[333188645,1721928657192,-500.0,0.00014246,2]
[333188646,1721928657205,-838.65,0.00014246,2]
[333188647,1721928657215,-1465.65,0.00014246,2]
[333188648,1721928657225,-512.76,0.00014246,2]
[333188649,1721928657237,-984.26,0.00014246,2]
[333188650,1721928657249,-500.0,0.00014246,2]
[333188651,1721928657259,-500.0,0.00014246,2]
[333188652,1721928657269,-1635.13,0.00014246,2]
[333188653,1721928657280,-937.8,0.00014246,2]
[333188654,1721928657293,-500.0,0.00014246,2]
[333188655,1721928657303,-500.0,0.00014246,2]
[333188656,1721928657313,-500.0,0.00014246,2]
[333188657,1721928657325,-796.58,0.00014246,2]
[333188658,1721928657337,-151.0,0.00014246,2]
[333188659,1721928657349,-885.84,0.00014246,2]
[333188660,1721928657361,-500.0,0.00014246,2]
[333188661,1721928657372,-627.38,0.00014246,2]
[333188662,1721928657383,-500.0,0.00014246,2]
[333188663,1721928657396,-269.37015071,0.00014246,2]
[333188664,1721928657406,-500.0,0.00014246,2]
[333188665,1721928657415,-1294.93,0.00014246,2]
[333188666,1721928657424,-500.0,0.00014246,2]
[333188667,1721928657434,-500.0,0.00014246,2]
[333188668,1721928657444,-1290.63,0.00014246,2]
[333188669,1721928657453,-500.0,0.00014246,2]
[333188670,1721928657462,-500.0,0.00014246,2]
[333188671,1721928657472,-500.0,0.00014246,2]
[333188672,1721928657483,-500.0,0.00014246,2]
[333188673,1721928657494,-543.54,0.00014246,2]
[333188674,1721928657507,-500.0,0.00014246,2]
[333188675,1721928657519,-500.94892548,0.00014246,2]
[333188676,1721928657532,-500.0,0.00014246,2]
[333188677,1721928657544,-500.0,0.00014246,2]
[333188678,1721928657556,-687.11,0.00014246,2]
[333188679,1721928657568,-787.93,0.00014246,2]
[333188680,1721928657579,-500.0,0.00014246,2]
[333188681,1721928657590,-959.39,0.00014246,2]
[333188682,1721928657600,-500.0,0.00014246,2]
[333188683,1721928657613,-559.46,0.00014246,2]
[333188684,1721928657622,-500.0,0.00014246,2]
[333188685,1721928657632,-500.0,0.00014246,2]
[333188686,1721928657641,-500.0,0.00014246,2]
[333188687,1721928657651,-502.35646363,0.00014246,2]
[333188688,1721928657660,-500.0,0.00014246,2]
[333188689,1721928657670,-500.0,0.00014246,2]
[333188690,1721928657679,-500.0,0.00014246,2]
[333188691,1721928657689,-1138.54,0.00014246,2]
[333188692,1721928657698,-500.0,0.00014246,2]
[333188693,1721928657708,-1209.57,0.00014246,2]
[333188694,1721928657717,-1185.04,0.00014246,2]
[333188695,1721928657727,-500.0,0.00014246,2]
[333188696,1721928657737,-554.65556923,0.00014246,2]
[333188697,1721928657747,-500.0,0.00014246,2]
[333188698,1721928657757,-500.0,0.00014246,2]
[333188699,1721928657767,-500.0,0.00014246,2]
[333188700,1721928657776,-528.59,0.00014246,2]
[333188701,1721928657786,-500.0,0.00014246,2]
[333188702,1721928657797,-500.0,0.00014246,2]
[333188703,1721928657807,-500.0,0.00014246,2]
[333188704,1721928657816,-500.0,0.00014246,2]
[333188705,1721928657825,-500.0,0.00014246,2]
[333188706,1721928657835,-500.0,0.00014246,2]
[333188707,1721928657845,-151.0,0.00014246,2]
[333188708,1721928657855,-500.0,0.00014246,2]
[333188709,1721928657864,-151.0,0.00014246,2]
[333188710,1721928657874,-1165.27,0.00014246,2]
[333188711,1721928657884,-1713.14,0.00014246,2]
[333188712,1721928657894,-500.0,0.00014246,2]
[333188713,1721928657903,-662.56258,0.00014246,2]
[333188714,1721928657913,-1027.09,0.00014246,2]
[333188715,1721928657922,-662.56258,0.00014246,2]
[333188716,1721928657932,-500.0,0.00014246,2]
[333188717,1721928657941,-500.0,0.00014246,2]
[333188718,1721928657951,-854.31,0.00014246,2]
[333188719,1721928657960,-500.0,0.00014246,2]
[333188720,1721928657970,-667.59,0.00014246,2]
[333188721,1721928657980,-500.0,0.00014246,2]
[333188722,1721928657990,-650.0,0.00014246,2]
[333188723,1721928657999,-500.0,0.00014246,2]
[333188724,1721928658010,-500.0,0.00014246,2]
[333188725,1721928658019,-1094.13,0.00014246,2]
[333188726,1721928658029,-256.747427,0.00014246,2]
[333188727,1721928658038,-500.0,0.00014246,2]
[333188728,1721928658048,-256.747427,0.00014246,2]
[333188729,1721928658057,-1813.648089,0.00014246,2]
[333188730,1721928658067,-256.747427,0.00014246,2]
[333188731,1721928658076,-256.747427,0.00014246,2]
[333188732,1721928658086,-1813.648089,0.00014246,2]
[333188733,1721928658095,-500.0,0.00014246,2]
[333188734,1721928658105,-289.33739864,0.00014246,2]
[333188735,1721928658114,-1093.67,0.00014246,2]
[333188736,1721928658124,-500.0,0.00014246,2]
[333188737,1721928658135,-500.0,0.00014246,2]
[333188738,1721928658145,-967.81,0.00014246,2]
[333188739,1721928658155,-538.62,0.00014246,2]
[333188740,1721928658169,-500.0,0.00014246,2]
[333188741,1721928658178,-268.383148,0.00014246,2]
[333188742,1721928658188,-643.53,0.00014246,2]
[333188743,1721928658198,-955.6,0.00014246,2]
[333188744,1721928658207,-510.82,0.00014246,2]
[333188745,1721928658217,-1531.63,0.00014246,2]
[333188746,1721928658226,-702.25,0.00014246,2]
[333188747,1721928658237,-186.165978,0.00014246,2]
[333188748,1721928658247,-186.165978,0.00014246,2]
[333188749,1721928658257,-500.0,0.00014246,2]
[333188750,1721928658267,-500.0,0.00014246,2]
[333188751,1721928658277,-186.165978,0.00014246,2]
[333188752,1721928658286,-186.165978,0.00014246,2]
[333188753,1721928658296,-500.0,0.00014246,2]
[333188754,1721928658306,-571.92,0.00014246,2]
[333188755,1721928658315,-2160.84,0.00014246,2]
[333188756,1721928658327,-500.0,0.00014246,2]
[333188757,1721928658336,-500.0,0.00014246,2]
[333188758,1721928658346,-506.01,0.00014246,2]
[333188759,1721928658355,-500.0,0.00014246,2]
[333188760,1721928658364,-2230.22,0.00014246,2]
[333188761,1721928658373,-500.0,0.00014246,2]
[333188762,1721928658382,-896.99,0.00014246,2]
[333188763,1721928658392,-500.0,0.00014246,2]
[333188764,1721928658402,-500.0,0.00014246,2]
[333188765,1721928658411,-2168.69,0.00014246,2]
[333188766,1721928658420,-503.15642272,0.00014246,2]
[333188767,1721928658431,-500.0,0.00014246,2]
[333188768,1721928658441,-1102.29,0.00014246,2]
[333188769,1721928658450,-500.0,0.00014246,2]
[333188770,1721928658459,-500.0,0.00014246,2]
[333188771,1721928658469,-500.0,0.00014246,2]
[333188772,1721928658482,-500.0,0.00014246,2]
[333188773,1721928658491,-1079.28,0.00014246,2]
[333188774,1721928658501,-3038.95,0.00014246,2]
[333188775,1721928658511,-259.02,0.00014246,2]
[333188776,1721928658520,-500.0,0.00014246,2]
[333188777,1721928658530,-259.02,0.00014246,2]
[333188778,1721928658539,-1956.66,0.00014246,2]
[333188779,1721928658551,-500.0,0.00014246,2]
[333188780,1721928658561,-500.0,0.00014246,2]
[333188781,1721928658571,-500.0,0.00014246,2]
[333188782,1721928658583,-500.0,0.00014246,2]
[333188783,1721928658596,-3240.79,0.00014246,2]
[333188784,1721928658606,-794.17,0.00014246,2]
[333188785,1721928658615,-500.0,0.00014246,2]
[333188786,1721928658624,-1663.33,0.00014246,2]
[333188787,1721928658636,-500.0,0.00014246,2]
[333188788,1721928658646,-500.0,0.00014246,2]
[333188789,1721928658658,-500.0,0.00014246,2]
[333188790,1721928658667,-500.0,0.00014246,2]
[333188791,1721928658677,-1089.79,0.00014246,2]
[333188792,1721928658686,-500.0,0.00014246,2]
[333188793,1721928658695,-500.0,0.00014246,2]
[333188794,1721928658705,-530.86108534,0.00014246,2]
[333188795,1721928658715,-500.0,0.00014246,2]
[333188796,1721928658725,-1812.0,0.00014246,2]
[333188797,1721928658736,-916.05,0.00014246,2]
[333188798,1721928658746,-500.0,0.00014246,2]
[333188799,1721928658756,-500.0,0.00014246,2]
[333188800,1721928658765,-500.0,0.00014246,2]
[333188801,1721928658774,-500.0,0.00014246,2]
[333188802,1721928658784,-151.0,0.00014246,2]
[333188803,1721928658795,-500.0,0.00014246,2]
[333188804,1721928658806,-500.0,0.00014246,2]
[333188805,1721928658816,-852.87,0.00014246,2]
[333188806,1721928658827,-209.5868913,0.00014246,2]
[333188807,1721928659100,-290.4131087,0.00014246,2]
[333188808,1721928659112,-3009.5868913,0.00014246,2]
[333189023,1721929833497,-300.0,9.799e-05,2]
[333189025,1721929833507,-176.14397417,9.998e-05,2]
[333189027,1721929833520,-123.85602583,9.998e-05,2]
[333189029,1721929833532,-338.37197417,9.999e-05,2]
[333189086,1721929838390,-4954.73072949,9.899e-05,2]
[333189088,1721929838403,-169.72331851,9.999e-05,2]
[333189090,1721929838416,-530.76060764,9.999e-05,2]
[333189092,1721929838431,-337.6370591,9.999e-05,2]
[333189094,1721929838445,-209.62262002,9.999e-05,2]
[333189096,1721929838457,-248.87416602,9.999e-05,2]
[333189098,1721929838470,-778.87203636,9.999e-05,2]
[333189100,1721929838480,-181.06938724,9.999e-05,2]
[333189102,1721929838496,-522.77658891,9.999e-05,2]
[333189105,1721929838509,-318.6400032,9.999e-05,2]
[333189109,1721929838523,-600.34409866,9.999e-05,2]
[333189112,1721929838541,-156.44936091,9.999e-05,2]
[333189116,1721929838554,-341.75517415,9.999e-05,2]
[333189119,1721929838567,-157.64360329,9.999e-05,2]
[333189123,1721929838582,-160.00381439,9.999e-05,2]
[333189127,1721929838596,-240.55889109,9.999e-05,2]
[333189131,1721929838609,-24900.0,0.00011663,2]
[333189134,1721929838623,-200.0,0.00013425,2]
[333189136,1721929838637,-884.58284466,0.00013598,2]
[333189138,1721929838647,-94349.4241808,0.00013688,2]
[333189140,1721929838659,-151.0,0.00013698,2]
[333189142,1721929838669,-221.428438,0.00013698,2]
[333189144,1721929838681,-221.428438,0.00013698,2]
[333189146,1721929838694,-2240.84,0.00013698,2]
[333189148,1721929838708,-6035.0,0.00013698,2]
[333189150,1721929838721,-6035.0,0.00013698,2]
[333189152,1721929838733,-6035.0,0.00013698,2]
[333189154,1721929838744,-6035.0,0.00013698,2]
[333189156,1721929838756,-6035.0,0.00013698,2]
[333189159,1721929838768,-6035.0,0.00013698,2]
[333189161,1721929838782,-6035.0,0.00013698,2]
[333189163,1721929838795,-6035.0,0.00013698,2]
[333189165,1721929838806,-6035.0,0.00013698,2]
[333189167,1721929838816,-500.0,0.00013698,2]
[333189169,1721929838828,-500.0,0.00013698,2]
[333189171,1721929838839,-436.61,0.00013698,2]
[333189172,1721929838850,-500.0,0.00013698,2]
[333189175,1721929838862,-500.0,0.00013698,2]
[333189177,1721929838875,-500.0,0.00013698,2]
[333189179,1721929838886,-3771.88,0.00013698,2]
[333189181,1721929838897,-3771.88,0.00013698,2]
[333189183,1721929838909,-3771.88,0.00013698,2]
[333189185,1721929838921,-3771.88,0.00013698,2]
[333189187,1721929838932,-3771.88,0.00013698,2]
[333189188,1721929838944,-3771.88,0.00013698,2]
[333189189,1721929838955,-3771.88,0.00013698,2]
[333189190,1721929838967,-3771.88,0.00013698,2]
[333189191,1721929838978,-3771.88,0.00013698,2]
[333189192,1721929838990,-3771.88,0.00013698,2]
[333189193,1721929839002,-3771.88,0.00013698,2]
[333189194,1721929839013,-3771.88,0.00013698,2]
[333189195,1721929839025,-3771.88,0.00013698,2]
[333189196,1721929839038,-3771.88,0.00013698,2]
[333189197,1721929839050,-3771.88,0.00013698,2]
[333189198,1721929839062,-3771.88,0.00013698,2]
[333189199,1721929839074,-3771.88,0.00013698,2]